[Event "Czech Open-Rapid 2022"]
[Site "Pardubice"]
[Date "2022.07.21"]
[Round "6.11"]
[White "Babula, Vlastimil jr"]
[Black "Cerveny, Martin"]
[Result "0-1"]
[ECO "D00"]
[WhiteElo "2039"]
[BlackElo "2396"]
[Annotator "TA"]
[PlyCount "50"]
[EventDate "2022.07.20"]
[EventType "swiss"]
[EventCountry "CZE"]
[SourceTitle "playchess.com"]
[Source "ChessBase"]
[SourceQuality "1"]
[TimeControl "1200+10"]

{[%evp 9,50,0,11,-60,-52,-73,-64,-73,-62,-64,-61,-103,-74,-113,-109,-179,-181,-192,-189,-160,-166,-229,-226,-273,-240,-301,-295,-443,-448,-481,-448,-820,-756,-801,-786,-828,-279,-400,-374,-378,-376,-434,-422]} 1. d4 {[%emt 0:00:01]} d5 {[%emt 0:00:01]} 2. Nc3 {[%emt 0:00:02]} Nf6 {[%emt 0:00:05]} 3. Bf4 {[%emt 0:00:01]} e6 {[%emt 0:00:10]} 4. e3 {[%emt 0:00:01]} a6 {[%emt 0:00:17]} 5. g4 {[%emt 0:00:02]} h6 {[%emt 0:00:12]} 6. f3 {[%emt 0:01:08] [#] D00: 1 d4 d5: Unusual lines.} ({Better is} 6. Qf3 $11) 6... b5 $146 {[%emt 0:00:32]} ({Predecessor:} 6... c5 7. Nge2 Nc6 8. Qd2 Bd7 9. h4 Rc8 10. Rg1 g6 11. O-O-O Qa5 12. Kb1 b5 {0-1 (43) Karimov,A (2251)-Iturrizaga Bonelli,E (2613) Chess.com INT 2021}) 7. Qd2 {[%emt 0:00:23]} c5 {[%emt 0:00:35]} 8. h4 {[%emt 0:00:07] Black is slightly better.} Nc6 {[%emt 0:00:27]} 9. Nge2 {[%emt 0:01:00]} Bb7 {[%emt 0:01:07]} 10. Rg1 {[%emt 0:00:51]} g6 {[%emt 0:00:51]} 11. g5 {[%emt 0:03:39] [#]} Nh5 {[%emt 0:00:22]} 12. dxc5 {[%emt 0:00:16]} (12. O-O-O $17) 12... Nxf4 {[%emt 0:00:29]} 13. Nxf4 {[%emt 0:00:05]} hxg5 {[%emt 0:00:05]} ({Worse is} 13... Bxc5 14. Nd3 Bb6 15. Ne2) 14. hxg5 {[%emt 0:00:43]} Bxc5 {[%emt 0:00:05] aiming for ...Qb6.} 15. O-O-O {[%emt 0:00:32]} (15. Nd3 {keeps fighting.} Bb6 16. Ne2) 15... Ne5 $19 {[%emt 0:00:58]} 16. Rg3 {[%emt 0:01:55]} Qb6 {[%emt 0:00:09]} 17. Ng2 {[%emt 0:05:23]} O-O-O {[%emt 0:00:23]} 18. f4 {[%emt 0:00:01] [#]} (18. Qe1 $142) 18... Nc4 $1 {[%emt 0:00:55]} 19. Bxc4 {[%emt 0:00:02]} dxc4 {[%emt 0:00:01]} ({And not} 19... bxc4 20. Na4 Qd6 21. Nxc5 Qxc5 22. Ne1 $11) 20. Qf2 {[%emt 0:00:40]} (20. Qe1 $142 Rh2 21. Rxd8+ Kxd8 22. Qf1) 20... Bxg2 {[%emt 0:00:55]} 21. Qxg2 {[%emt 0:00:01]} Bxe3+ {[%emt 0:00:03]} 22. Kb1 {[%emt 0:00:02]} Bxf4 $2 {[%emt 0:00:53] Active counter play!} (22... b4 23. Nd5 Rxd5 24. Rxd5 exd5) 23. Rf3 {[%emt 0:00:39]} (23. Rg4 {was necessary.} Rxd1+ 24. Nxd1) 23... Rxd1+ {[%emt 0:01:02]} 24. Nxd1 {[%emt 0:00:02]} Qc6 {[%emt 0:00:04]} 25. Qg4 {[%emt 0:00:52] [#]} Rh4 $3 {[%emt 0:02:28][%mdl 512] White got outplayed after the opening.  Weighted Error Value: White=0.72/Black=0.29 (precise)} 0-1

[Event "Czech Open-Rapid 2022"]
[Site "Pardubice"]
[Date "2022.07.21"]
[Round "6.12"]
[White "Kraus, Ondrej"]
[Black "Blatny, Pavel"]
[Result "1-0"]
[ECO "A40"]
[WhiteElo "1993"]
[BlackElo "2325"]
[Annotator "TA"]
[PlyCount "93"]
[EventDate "2022.07.20"]
[EventType "swiss"]
[EventCountry "CZE"]
[SourceTitle "playchess.com"]
[Source "ChessBase"]
[SourceQuality "1"]
[TimeControl "1200+10"]

{[%evp 9,93,14,20,17,22,9,18,5,19,0,6,15,4,10,16,19,36,32,39,26,50,29,31,24,39,30,185,185,293,305,341,311,310,341,335,312,333,332,325,313,349,351,401,350,485,485,470,481,467,452,593,601,594,542,2522,2522,29986,29987,29995,1231,1187,1172,2344,2310,1677,1324,4854,2954,11656,29972,29979,29980,29986,29981,29981,29982,29986,29987,29993,29985,29985,29986,29996,29986,29996,29997]} 1. d4 {[%emt 0:00:02]} b6 {[%emt 0:00:01]} 2. c4 {[%emt 0:00:06]} e6 {[%emt 0:00:01]} 3. Nf3 {[%emt 0:00:09]} Bb7 {[%emt 0:00:02]} 4. e3 {[%emt 0:00:15]} f5 {[%emt 0:00:06]} 5. Nc3 {[%emt 0:00:58]} Nf6 {[%emt 0:00:03]} 6. a3 {[%emt 0:00:35] A85: Dutch Defence: 2 c4 Nf6 3 Nc3.} Be7 {[%emt 0:00:25]} 7. Bd3 {[%emt 0:00:17]} O-O {[%emt 0:00:03]} 8. O-O {[%emt 0:00:13] The position is equal.} Qe8 {[%emt 0:00:15]} 9. d5 {[%emt 0:01:39] [#]} Na6 $146 {[%emt 0:02:13]} ({Predecessor:} 9... a5 10. b3 Na6 11. Bb2 Nc5 12. Be2 Nfe4 13. Nb5 Na6 14. Rc1 Bf6 15. Nbd4 g5 {1-0 (33) Golenia,W (2001)-Galant,I (1690) Krakow 2016}) 10. b4 {[%emt 0:00:14]} c6 {[%emt 0:00:01]} 11. Qe2 {[%emt 0:03:14][%cal Oc4c5]} cxd5 {[%emt 0:00:36]} 12. cxd5 {[%emt 0:00:06]} Nc7 {[%emt 0:00:01]} 13. dxe6 {[%emt 0:00:27]} dxe6 {[%emt 0:00:02]} 14. Bb2 {[%emt 0:00:29]} Ncd5 {[%emt 0:00:12]} 15. Ne5 {[%emt 0:00:47]} Nxc3 {[%emt 0:00:33]} 16. Bxc3 {[%emt 0:00:03]} Nd5 {[%emt 0:00:02]} 17. Bd4 {[%emt 0:00:30]} f4 $2 {[%emt 0:00:47] Black cannot hold the game after this.} (17... Bf6 $11 {and Black has nothing to worry.}) 18. Bb5 $18 {[%emt 0:00:18]} Qd8 {[%emt 0:00:21]} (18... f3 $142 19. Nxf3 Qg6) 19. Qg4 {[%emt 0:01:22] [#] Nc6 is the strong threat.} Rf6 {[%emt 0:00:10]} 20. Nc6 {[%emt 0:00:40]} Qe8 {[%emt 0:06:39]} 21. Nxe7+ {[%emt 0:00:39]} Qxe7 {[%emt 0:00:02]} 22. Bxf6 {[%emt 0:00:13]} Qxf6 {[%emt 0:00:05]} 23. Bd7 {[%emt 0:01:24]} Kf7 {[%emt 0:00:07]} 24. Rad1 {[%emt 0:01:18]} Ke7 {[%emt 0:01:42]} 25. Ba4 {[%emt 0:00:53]} ({Not} 25. Bxe6 h5 26. Qxh5 (26. Bxd5 hxg4 27. Bxb7 Rd8 $11) 26... Qxe6 $16) 25... Rd8 {[%emt 0:01:07]} 26. exf4 {[%emt 0:01:29]} Nxf4 {[%emt 0:00:36]} 27. Rxd8 {[%emt 0:00:14]} Kxd8 {[%emt 0:00:02]} 28. g3 {[%emt 0:01:31]} Nd5 {[%emt 0:00:15]} 29. Qh5 {[%emt 0:00:46] [#] aiming for Qe8+.} Qf8 {[%emt 0:01:57] Prevents Qe8+.} 30. Qe5 {[%emt 0:00:44] And now Qb8+ would win.} Ke7 {[%emt 0:00:47]} 31. Re1 {[%emt 0:00:32][%cal Bf1e1,Be1e4,Be4f4,Bf4f3][%mdl 32]} Qf6 {[%emt 0:00:45]} 32. Qb8 {[%emt 0:00:28][%csl LRa7,LRb7] Intending Qe8+ and mate.} Bc6 {[%emt 0:02:18] Against Qe8+} 33. Bxc6 {[%emt 0:00:28]} Qc3 {[%emt 0:00:06]} 34. Qb7+ {[%emt 0:00:26]} (34. Qe8+ $142 Kf6 35. Qxe6+ Kg5 36. h4+ Kh5 37. Qf5+ Kh6 38. Qg5#) 34... Kf6 {[%emt 0:00:22]} 35. Re4 {[%emt 0:00:38]} Ne7 {[%emt 0:01:03]} 36. Rf4+ {[%emt 0:00:18]} Nf5 {[%emt 0:00:02]} 37. Be4 {[%emt 0:00:27]} g5 {[%emt 0:00:17]} 38. Rf3 {[%emt 0:00:08]} Qe1+ {[%emt 0:00:46]} 39. Kg2 {[%emt 0:00:08]} g4 {[%emt 0:00:19] White mates.} 40. Rf4 {[%emt 0:00:08]} h5 {[%emt 0:00:10]} 41. Bxf5 {[%emt 0:00:12]} exf5 {[%emt 0:00:13]} 42. Qc6+ {[%emt 0:00:09]} Kg5 {[%emt 0:00:07]} 43. Qd5 {[%emt 0:00:32]} Qb1 {[%emt 0:00:12]} 44. Qg8+ {[%emt 0:00:09]} Kf6 {[%emt 0:00:04]} 45. Rd4 {[%emt 0:00:28]} Qe1 {[%emt 0:00:15]} 46. Qd8+ {[%emt 0:00:12]} Kf7 {[%emt 0:00:31]} 47. Rd7+ {[%emt 0:00:09] Weighted Error Value: White=0.06 (flawless) /Black=0.62} 1-0

[Event "Czech Open-Rapid 2022"]
[Site "Pardubice"]
[Date "2022.07.21"]
[Round "6.13"]
[White "Schatz, Christian"]
[Black "Babula, Vlastimil sr"]
[Result "0-1"]
[ECO "A33"]
[WhiteElo "2137"]
[BlackElo "2556"]
[Annotator "TA"]
[PlyCount "88"]
[EventDate "2022.07.20"]
[EventType "swiss"]
[EventCountry "CZE"]
[SourceTitle "playchess.com"]
[Source "ChessBase"]
[SourceQuality "1"]
[TimeControl "1200+10"]

{[%evp 11,88,0,-1,-6,16,18,15,21,18,-1,20,-35,-32,-34,-32,-31,-31,-47,-29,-61,-48,-116,-39,-84,-81,-87,-84,-93,-97,-102,-91,-91,-70,-84,-68,-85,-79,-100,-72,-86,-34,-112,-60,-68,-58,-46,0,-23,-10,-15,-10,-10,0,0,0,0,0,0,0,0,46,39,54,11,14,11,17,-216,-207,-807,-793,-5497,-5310,-5497,-2378,-29994,-29995,-29995,-29996]} 1. Nf3 {[%emt 0:00:02]} c5 {[%emt 0:00:02]} 2. c4 {[%emt 0:00:06]} Nc6 {[%emt 0:00:03]} 3. d4 {[%emt 0:00:05]} cxd4 {[%emt 0:00:03]} 4. Nxd4 {[%emt 0:00:02]} Nf6 {[%emt 0:00:03]} 5. Nc3 {[%emt 0:00:16]} e6 {[%emt 0:00:02]} 6. e3 {[%emt 0:00:45]} Bb4 {[%emt 0:00:47]} 7. Bd2 {[%emt 0:00:26] A33: Symmetrical English: 2 Nf3 Nf6 3 d4 cxd4 4 Nxd4 e6 5 Nc3 Nc6.} Nxd4 {[%emt 0:00:03]} 8. exd4 {[%emt 0:00:01]} O-O {[%emt 0:00:08]} 9. Be2 {[%emt 0:00:18] The position is equal.} d5 {[%emt 0:00:04]} 10. cxd5 {[%emt 0:00:15]} Bxc3 {[%emt 0:00:23]} 11. Bxc3 {[%emt 0:00:29]} (11. bxc3 $11 exd5 12. f3) 11... Nxd5 $15 {[%emt 0:00:05]} 12. O-O {[%emt 0:00:04] [#]} b6 $146 {[%emt 0:00:02]} ({Predecessor:} 12... Bd7 13. Bf3 Nxc3 14. bxc3 Rc8 15. Qb3 b5 16. Rfc1 Qb6 17. Be2 Rc7 18. c4 bxc4 19. Qxb6 axb6 20. Rxc4 {0-1 (37) Meins,G (2422)-Perunovic,M (2606) Biel 2017}) 13. Bf3 {[%emt 0:00:22]} Bb7 {[%emt 0:00:02]} 14. Rc1 {[%emt 0:00:10]} Qd7 {[%emt 0:00:05]} 15. Qd2 {[%emt 0:00:52]} Rfd8 {[%emt 0:00:10][%cal Bf8d8,Bd8d5,Bd5f5][%mdl 32]} 16. Rfe1 {[%emt 0:00:25]} (16. Be2 $15) 16... Ne7 {[%emt 0:00:11]} (16... Nxc3 $17 17. bxc3 Bxf3 18. gxf3 Rac8) 17. Bxb7 {[%emt 0:00:16]} Qxb7 {[%emt 0:00:02]} 18. Qg5 {[%emt 0:00:23][%cal Od4d5]} Rd5 {[%emt 0:00:16]} 19. Qg4 {[%emt 0:00:27]} Rad8 {[%emt 0:00:07]} 20. h4 {[%emt 0:00:42]} h5 {[%emt 0:01:23]} 21. Qf3 {[%emt 0:00:11]} Qa6 {[%emt 0:00:04]} 22. a3 {[%emt 0:00:33]} Rf5 {[%emt 0:00:06]} 23. Qe4 {[%emt 0:00:07]} Nd5 {[%emt 0:00:34]} 24. g3 {[%emt 0:00:10]} Nf6 {[%emt 0:00:10] Black is more active.} 25. Qc6 {[%emt 0:01:29][%cal Oe1e6]} Nd5 {[%emt 0:01:00]} (25... Ng4 $17 {Strongly threatening ...Rc8.} 26. Rc2 (26. f3 Nf6 $17) 26... Rfd5) 26. Re5 {[%emt 0:01:18]} (26. Bd2 $15) 26... Rc8 {[%emt 0:00:39]} (26... Rxe5 $1 $17 27. dxe5 Qe2) 27. Qd7 {[%emt 0:00:24]} Nf6 {[%emt 0:03:07]} 28. Qe7 {[%emt 0:00:41]} Qd3 {[%emt 0:01:05]} (28... Rxe5 $15 29. dxe5 Nd5) 29. Rxf5 {[%emt 0:00:58]} Qxf5 {[%emt 0:00:03]} 30. Qb7 {[%emt 0:00:58]} Rc4 {[%emt 0:01:12]} 31. Re1 {[%emt 0:01:11] Inhibits Ne4.} Ng4 $40 {[%emt 0:01:01][%mdl 128] Black mounts an attack.} 32. Re2 {[%emt 0:00:32]} Qb5 {[%emt 0:00:32][%cal Oc4c3] White must now prevent ...Rxc3!} 33. Qa8+ {[%emt 0:00:22]} Kh7 {[%emt 0:00:02][%cal Oc4c3] Threatens to win with ...Rxc3!} 34. Qe4+ {[%emt 0:00:02]} (34. f3 $2 Rxc3 $1 {[%mdl 512]} 35. bxc3 Qxe2 $19) 34... g6 {[%emt 0:00:16]} 35. Qf4 {[%emt 0:00:22]} Qd7 {[%emt 0:00:41]} (35... Rxc3 $11 36. Qxf7+ Kh8 37. Qf8+ Kh7 38. Qf7+ Kh8 39. Qf8+ Kh7 40. Qf7+) 36. f3 $14 {[%emt 0:00:25]} Nh6 {[%emt 0:00:45]} 37. g4 {[%emt 0:00:22] Against Nf5} (37. Qe5 $5 {[%cal Rd4d5]}) 37... hxg4 {[%emt 0:00:17]} 38. fxg4 {[%emt 0:00:02]} Qc7 {[%emt 0:03:14]} 39. Re5 $2 {[#] Loses the game.} (39. Qxc7 $11 Rxc7 40. d5) 39... Nxg4 $1 $19 40. Bd2 $2 {[%emt 0:03:19]} ({Not} 40. Qxg4 $2 Qxe5 41. Kg2 Qe3 $19) (40. Re4 Qxf4 41. Rxf4) 40... Nxe5 {[%emt 0:00:48]} 41. Qh6+ {[%emt 0:00:10]} Kg8 {[%emt 0:00:02]} 42. dxe5 {[%emt 0:00:22]} Qxe5 {[%emt 0:00:30]} (42... Rg4+ $142 43. Kf1 Qxe5) 43. Bc3 {[%emt 0:00:07]} Qg3+ {[%emt 0:00:12]} 44. Kf1 {[%emt 0:00:07]} Qf3+ {[%emt 0:00:31] Weighted Error Value: White=0.77/Black=0.14 (very precise)} 0-1

[Event "Czech Open-Rapid 2022"]
[Site "Pardubice"]
[Date "2022.07.21"]
[Round "6.14"]
[White "Ptacek, Lubos"]
[Black "Jirovsky, Milos"]
[Result "0-1"]
[ECO "B01"]
[WhiteElo "2049"]
[BlackElo "2458"]
[Annotator "TA"]
[PlyCount "76"]
[EventDate "2022.07.20"]
[EventType "swiss"]
[EventCountry "CZE"]
[SourceTitle "playchess.com"]
[Source "ChessBase"]
[SourceQuality "1"]
[TimeControl "1200+10"]

{[%evp 9,76,42,69,45,62,0,0,0,0,0,5,3,3,0,16,0,0,0,0,0,0,-2,0,0,35,16,39,0,0,0,10,0,0,0,0,-36,-39,-48,0,-5,0,0,-4,-14,-10,-137,-137,-217,-227,-222,-161,-229,-209,-242,-245,-275,-267,-268,-274,-390,-389,-554,-545,-562,-562,-561,-542,-504,-483]} 1. e4 {[%emt 0:00:04]} d5 {[%emt 0:00:01]} 2. exd5 {[%emt 0:00:02]} Qxd5 {[%emt 0:00:01]} 3. Nf3 {[%emt 0:00:04]} Nf6 {[%emt 0:00:01]} 4. Be2 {[%emt 0:00:28]} Bf5 {[%emt 0:00:08]} 5. d4 {[%emt 0:00:28]} c6 {[%emt 0:00:03]} 6. O-O {[%emt 0:00:13] B01: Scandinavian Defence.} e6 {[%emt 0:00:01]} 7. Bf4 {[%emt 0:00:14]} (7. c4 $14 Qd8 8. Nh4) 7... Qe4 $11 {[%emt 0:00:28][%csl LRc2,LRf4]} 8. Bxb8 {[%emt 0:00:33] The position is equal.} Rxb8 {[%emt 0:00:01]} 9. Bd3 {[%emt 0:00:03]} Qf4 {[%emt 0:00:18]} 10. Bxf5 {[%emt 0:00:21]} Qxf5 {[%emt 0:00:02]} 11. Nbd2 {[%emt 0:00:24]} Bd6 {[%emt 0:00:44]} 12. Re1 {[%emt 0:00:25]} O-O {[%emt 0:00:06]} 13. Nc4 {[%emt 0:00:34]} Bc7 {[%emt 0:00:20] [#]} 14. Qe2 $146 {[%emt 0:00:31]} ({Predecessor:} 14. Nfe5 Rbd8 15. c3 Ne4 16. Qe2 Nd6 17. Nxd6 Bxd6 18. Rad1 Rfe8 19. h3 h6 20. Rd2 {0-1 (37) Lagunow,E (1683)-Spiegelberg,S (1609) Oberhof 2010}) 14... Rbd8 {[%emt 0:02:00]} 15. c3 {[%emt 0:00:08]} Rfe8 {[%emt 0:00:30]} 16. Nce5 {[%emt 0:00:06]} Rd5 {[%emt 0:03:05]} 17. Rad1 {[%emt 0:01:18]} Red8 {[%emt 0:00:53]} 18. Nh4 {[%emt 0:01:58]} Qh5 {[%emt 0:02:01]} 19. Nhf3 {[%emt 0:01:25]} h6 {[%emt 0:00:52]} 20. h3 {[%emt 0:01:40]} c5 21. c4 {[%emt 0:09:28]} R5d6 {[%emt 0:00:18]} 22. Nd3 {[%emt 0:01:16]} cxd4 {[%emt 0:00:04]} 23. b4 {[%emt 0:00:41]} R6d7 {[%emt 0:00:37]} (23... Rc6 $5 {[%cal Rc6c4]} 24. Qc2 Qb5 $15) 24. Nc5 {[%emt 0:00:04] Pair of Knights!} Re7 {[%emt 0:00:16]} 25. Nxb7 {[%emt 0:00:05]} Rb8 {[%emt 0:00:05]} 26. Nc5 {[%emt 0:00:04] And now a3 would win.} Rxb4 {[%emt 0:00:05]} 27. Nd3 {[%emt 0:00:19]} (27. Na6 $11 {remains equal.} Ra4 28. Nxc7 Rxc7 29. Rxd4) 27... Rxc4 $17 {[%emt 0:00:45] Black is more active.} 28. Nf4 {[%emt 0:00:10] Against Qd5} (28. Nde5 $17 Rc5 29. Rxd4) 28... Qc5 $19 {[%emt 0:00:08]} ({Don't take} 28... Bxf4 29. Qxc4 Bc7 30. Qxd4 $16 (30. Rxd4 Bb6 $16)) 29. Nd3 {[%emt 0:00:25]} Qa5 {[%emt 0:00:21]} 30. Nb2 {[%emt 0:00:18]} (30. Nde5 $142 d3 31. Qxd3) 30... Rb4 {[%emt 0:00:48]} 31. Nxd4 {[%emt 0:00:16]} Qxa2 {[%emt 0:01:10]} 32. Nc6 {[%emt 0:00:34][%cal Oe2c2] [#] Hoping for Qc2!} Rxb2 {[%emt 0:00:01]} 33. Nxe7+ {[%emt 0:00:02]} Kf8 {[%emt 0:00:01]} 34. Ng6+ {[%emt 0:00:41]} (34. Qf3 $142 Kxe7 35. Ra1) 34... fxg6 {[%emt 0:00:05]} 35. Qf3 {[%emt 0:00:09] [#]} (35. Qxe6 {is a better defense.} Qxe6 36. Rxe6) 35... Rxf2 $3 {[%emt 0:00:53][%mdl 512] Black is clearly winning.} 36. Qxf2 {[%emt 0:00:26]} (36. Ra1 Rxf3) 36... Bb6 {[%emt 0:00:01][%mdl 64] Pin} 37. Re3 {[%emt 0:00:01]} Qxf2+ {[%emt 0:00:05]} 38. Kxf2 {[%emt 0:00:01][%cal Od1b1]} Nd5 {[%emt 0:00:01] Weighted Error Value: White=0.30/Black=0.10 (very precise)} 0-1

[Event "Czech Open-Rapid 2022"]
[Site "Pardubice"]
[Date "2022.07.21"]
[Round "6.15"]
[White "Seger, Ruediger"]
[Black "Malinovsky, Petr"]
[Result "1/2-1/2"]
[ECO "B22"]
[WhiteElo "2299"]
[BlackElo "1959"]
[Annotator "TA"]
[PlyCount "73"]
[EventDate "2022.07.20"]
[EventType "swiss"]
[EventCountry "CZE"]
[SourceTitle "playchess.com"]
[Source "ChessBase"]
[SourceQuality "1"]
[TimeControl "1200+10"]

{[%evp 24,73,39,43,66,23,12,0,0,-13,-6,-35,-37,-113,13,13,13,18,17,0,0,-13,21,6,6,4,11,-6,-8,-5,0,-89,0,0,0,0,0,0,0,6,0,0,0,0,0,0,0,0,0,0,0,0]} 1. e4 {[%emt 0:00:02]} c5 {[%emt 0:00:00]} 2. c3 {[%emt 0:00:02]} Nf6 {[%emt 0:00:12]} 3. e5 {[%emt 0:00:01]} Nd5 {[%emt 0:00:02]} 4. d4 {[%emt 0:00:02]} cxd4 {[%emt 0:00:02]} 5. Nf3 {[%emt 0:00:01]} e6 {[%emt 0:00:06]} 6. cxd4 {[%emt 0:00:02]} d6 {[%emt 0:00:08]} 7. Nc3 {[%emt 0:00:03]} Nxc3 {[%emt 0:00:11]} 8. bxc3 {[%emt 0:00:01]} Qc7 {[%emt 0:00:16]} 9. Bd2 {[%emt 0:00:03]} Nc6 {[%emt 0:00:13]} 10. exd6 {[%emt 0:03:00]} Bxd6 {[%emt 0:00:02]} 11. Bd3 {[%emt 0:00:02]} h6 {[%emt 0:01:18]} 12. O-O {[%emt 0:00:36]} O-O {[%emt 0:00:03]} 13. Re1 {[%emt 0:00:15]} e5 {[%emt 0:00:45] B22: Sicilian: 2 c3.} 14. h3 {[%emt 0:02:26] Inhibits Bg4. White is more active.} (14. Qe2 $5 {[%cal Rd4e5]} exd4 15. Qe4 $14 (15. cxd4 Qe7 $14)) 14... Be6 {[%emt 0:00:50] [#]} 15. a4 $146 {[%emt 0:00:37]} ({Predecessor:} 15. Be4 exd4 {½-½ (15) Kabos,T (2251)-Coenen,M (2309) Goch 2012}) 15... Rad8 {[%emt 0:01:05]} 16. Rb1 {[%emt 0:00:46]} b6 {[%emt 0:00:39]} 17. Be4 {[%emt 0:01:01]} exd4 {[%emt 0:03:00]} 18. cxd4 {[%emt 0:00:02] [#]} (18. Qc1 $15) 18... Ne7 {[%emt 0:01:42]} ({Black should try} 18... Nxd4 $1 $17 {[%mdl 512]} 19. Bd3 (19. Qc1 Qxc1) 19... Ba2 20. Nxd4 Bh2+ 21. Kh1 Rxd4) 19. a5 $11 {[%emt 0:04:23]} Bd5 {[%emt 0:02:05]} 20. axb6 {[%emt 0:00:19]} axb6 {[%emt 0:00:04]} 21. Bd3 {[%emt 0:03:23]} Nc6 {[%emt 0:01:45]} 22. Be3 {[%emt 0:01:46]} Be7 {[%emt 0:03:25]} 23. Ne5 {[%emt 0:03:02]} Nxe5 {[%emt 0:01:11]} 24. dxe5 {[%emt 0:00:01]} Bc5 {[%emt 0:00:09][%cal Od5c4]} (24... Qxe5 {feels hotter.} 25. Bxb6 Qg5 26. g3 Rd6) 25. Bxc5 {[%emt 0:00:08]} (25. Bxh6 {keeps more tension.} gxh6 26. Qg4+ Kh8 27. Qh4) 25... bxc5 {[%emt 0:00:15]} 26. Qc2 {Against Bc4} Qc6 {[%emt 0:01:23]} 27. Bh7+ {[%emt 0:00:22]} Kh8 {[%emt 0:00:03] [#] Threatens to win with ...g6.} 28. Be4 {[%emt 0:00:02] The position is equal.} Rfe8 {[%emt 0:00:47]} 29. f4 {[%emt 0:00:14]} f6 {[%emt 0:00:59]} 30. Bxd5 {[%emt 0:00:14]} Qxd5 {[%emt 0:00:50]} 31. Rbd1 {[%emt 0:00:10]} Qc6 {[%emt 0:00:19]} 32. Rxd8 {[%emt 0:00:07]} Rxd8 {[%emt 0:00:02]} 33. e6 {[%emt 0:00:03][%cal Be5e6,Be6e7][%mdl 32]} c4 {[%emt 0:00:25]} 34. e7 {[%emt 0:01:32]} Re8 {[%emt 0:00:16]} 35. Qe4 {[%emt 0:00:02]} Qxe4 {[%emt 0:00:27]} 36. Rxe4 {[%emt 0:00:02]} Kg8 {[%emt 0:00:00]} 37. Rxc4 {Weighted Error Value: White=0.15 (very precise) /Black=0.14 (very precise)} 1/2-1/2

[Event "Czech Open-Rapid 2022"]
[Site "Pardubice"]
[Date "2022.07.21"]
[Round "6.16"]
[White "Polak, Benedikt"]
[Black "Strebkovs, Andrejs"]
[Result "0-1"]
[ECO "B10"]
[WhiteElo "2120"]
[BlackElo "2283"]
[Annotator "TA"]
[PlyCount "126"]
[EventDate "2022.07.20"]
[EventType "swiss"]
[EventCountry "CZE"]
[SourceTitle "playchess.com"]
[Source "ChessBase"]
[SourceQuality "1"]
[TimeControl "1200+10"]

{[%evp 9,126,27,33,13,20,14,28,0,38,22,33,20,39,53,51,39,37,37,112,40,38,10,12,11,7,7,27,0,0,0,0,0,0,0,0,0,0,0,0,0,0,0,0,-14,0,-46,-46,-46,-32,-46,-16,-39,-18,-23,-20,-20,-18,-48,-48,-57,-10,-10,-10,-10,-10,-48,-10,-48,-23,-48,-48,-48,-48,-48,-48,-48,-48,-48,-48,-48,-48,-48,-48,-49,-48,-48,-48,-48,-48,-73,-48,-48,-48,-48,-26,-102,-102,-113,-113,-385,-385,-357,-241,-552,-552,-552,-552,-934,-773,-804,-805,-1910,-1675,-2144,-2320,-29980,-29982,-29979,-29980]} 1. e4 c6 2. Nf3 g6 3. d4 d5 4. exd5 cxd5 5. h3 Bg7 6. Be2 {B06: Modern Defence.} Nc6 7. O-O Nf6 8. Bf4 {White has an edge.} O-O (8... Qb6 $5 {[%cal Rb6b2]}) 9. Nbd2 Ne4 10. c3 Qb6 11. Qb3 Nxd2 {[#]} 12. Bxd2 $146 ({Predecessor:} 12. Nxd2 Qxb3 13. axb3 e5 14. dxe5 Nxe5 15. Bxe5 Bxe5 16. Nf3 Bf6 17. Rfd1 Be6 18. b4 {1-0 (52) Gajewski,G (2647)-Kreisl,R (2442) Reykjavik 2015}) 12... Qxb3 13. axb3 f6 {[#]} (13... a6 $14) 14. Bb5 (14. b4 $1 $16) 14... e5 15. Rfe1 {Threatening Bxc6.} e4 16. Nh2 {[%cal Bf3h2,Bh2f1,Bf1e3][%mdl 32]} f5 17. f3 h5 18. fxe4 fxe4 19. Bg5 a6 {[%cal Oc6d4]} 20. Nf1 Be6 21. Bxc6 bxc6 22. b4 Bc8 23. Ne3 {[%cal Ob4b5]} Rb8 24. Rf1 Bb7 25. Rxf8+ Rxf8 26. Rf1 Rf7 27. Rxf7 (27. Ra1 $11) 27... Kxf7 $11 {[%mdl 4096] Endgame KBB-KBN} 28. Kf2 Bf8 29. h4 Bd6 30. g3 Bc7 31. Bf4 Bb6 32. g4 Bc8 33. gxh5 gxh5 34. Kg3 a5 (34... Bd8 $15) 35. bxa5 Bxa5 36. b4 Bb6 37. Bg5 Kg6 38. Bf4 {[%cal Ob4b5]} Bd8 39. Be5 {[%cal Ob4b5]} Be6 40. Bf4 Kf7 41. Be5 Ke8 42. Bf4 Kd7 43. Bg5 Bb6 44. Bf6 Bc7+ 45. Be5 Bd8 46. Bf4 Kc8 47. Ng2 Kb7 48. Bg5 Bb6 49. Kf4 Bc7+ 50. Ke3 Ka6 51. Nf4 Bg4 52. c4 (52. Kd2 $11) 52... dxc4 $17 {[%cal Bd5c4,Bc4c3,Bc3c2][%mdl 32]} 53. Kxe4 Kb5 54. Be7 $2 {[%mdl 8192] This costs White the game.} (54. d5 $17) 54... c3 $19 {[#] White must now prevent ...Bxf4.} 55. Nd3 Kc4 {[%cal Og4f5] Inhibits d5. Hoping for ...Bf5+!} 56. Nc1 $2 (56. Ne5+ {nothing else works.} Bxe5 57. dxe5) 56... c2 57. Ke3 Kc3 {...Kb2 is the strong threat.} 58. Bc5 Kb2 59. Nd3+ Kb1 {Strongly threatening ...Bf5.} 60. b5 cxb5 61. Ba3 Bf5 {( -> ...Bxd3)} 62. Nc1 b4 63. Bxb4 Kxc1 {Weighted Error Value: White=0.48/Black=0.13 (very precise)} 0-1